[Event "Aktogay Masters 2019"]
[Site "Aktogay"]
[Date "2019.05.15"]
[Round "4.2"]
[White "Suleymenov, Alisher"]
[Black "Vlassov, Nikolai"]
[Result "1/2-1/2"]
[ECO "A60"]
[WhiteElo "2435"]
[BlackElo "2393"]
[Annotator "NA"]
[PlyCount "187"]
[EventDate "2019.05.11"]
[EventType "tourn"]
[EventCountry "KAZ"]
[SourceTitle "playchess.com"]
[Source "ChessBase"]
[SourceQuality "1"]
[TimeControl "5400+30"]

1. d4 {[%emt 0:00:00]} Nf6 {[%emt 0:00:00]} 2. c4 {[%emt 0:00:00]} c5 {[%emt 0:00:00]} 3. d5 {[%emt 0:00:00]} e6 {[%emt 0:00:00]} 4. Nc3 {[%emt 0:03:07]} exd5 {[%emt 0:00:00]} 5. cxd5 {[%emt 0:00:04]} Bd6 {[%emt 0:00:04]} 6. Nf3 {[%emt 0:04:03]} O-O {[%emt 0:00:16]} 7. g3 {[%emt 0:00:03]} Bc7 {[%emt 0:00:23]} 8. d6 {[%emt 0:00:21]} Ba5 {[%emt 0:00:08]} 9. Bg2 {[%emt 0:00:04]} Ne4 {[%emt 0:04:30]} 10. O-O {[%emt 0:00:03]} Nxc3 11. bxc3 {[%emt 0:00:04]} Bxc3 {[%emt 0:01:11]} 12. Bg5 {[%emt 0:00:03]} Bf6 {[%emt 0:00:43]} 13. Qd5 {[%emt 0:00:03]} Nc6 {[%emt 0:03:19]} 14. Qxc5 {[%emt 0:21:33]} b6 {[%emt 0:00:18]} 15. Qf5 {[%emt 0:01:28]} Ba6 {[%emt 0:02:12]} 16. Rfe1 {[%emt 0:18:20]} Rc8 {[%emt 0:00:29]} 17. e4 {[%emt 0:18:50]} Nb4 {[%emt 0:09:57]} 18. Rac1 {[%emt 0:10:37]} Bc4 {[%emt 0:02:51]} 19. e5 {[%emt 0:05:30]} Bxg5 {[%emt 0:02:27]} 20. Nxg5 {[%emt 0:01:05]} g6 {[%emt 0:01:22]} 21. Qe4 {[%emt 0:05:40]} b5 {[%emt 0:01:21]} 22. Qh4 {[%emt 0:00:47]} h5 {[%emt 0:00:04]} 23. g4 {[%emt 0:00:54]} f6 {[%emt 0:04:55]} 24. exf6 {[%emt 0:00:32]} Qxf6 {[%emt 0:00:02]} 25. gxh5 {[%emt 0:00:03]} Rc5 {[%emt 0:10:35]} 26. hxg6 {[%emt 0:02:42]} Qxg6 {[%emt 0:02:17]} 27. Ne4 {[%emt 0:02:22]} Rh5 {[%emt 0:00:15]} 28. Qg3 {[%emt 0:00:00]} Qxg3 {[%emt 0:00:41]} 29. Nxg3 {[%emt 0:00:02]} Rh6 {[%emt 0:00:10]} 30. Rcd1 {[%emt 0:01:13]} Nd3 {[%emt 0:00:55]} 31. Re2 {[%emt 0:00:27]} Rxd6 {[%emt 0:00:25]} 32. Red2 {[%emt 0:00:10]} Rf4 {[%emt 0:03:57]} 33. Be4 {[%emt 0:01:29]} Rxe4 {[%emt 0:01:16]} 34. Nxe4 {[%emt 0:00:19]} Rg6+ {[%emt 0:00:02]} 35. Ng3 {[%emt 0:03:58]} Ne5 {[%emt 0:01:36]} 36. Kg2 {[%emt 0:00:01]} b4 {[%emt 0:03:33]} 37. f4 {[%emt 0:00:44]} Ng4 {[%emt 0:00:38]} 38. Kf3 {[%emt 0:00:41]} Nf6 {[%emt 0:04:56]} 39. f5 {[%emt 0:00:35]} Rh6 {[%emt 0:01:56]} 40. Re1 {[%emt 0:01:06]} Kf7 {[%emt 0:02:14]} 41. Re5 {[%emt 0:00:28]} a6 {[%emt 0:03:17]} 42. Rc5 {[%emt 0:00:34]} Bb5 {[%emt 0:00:58]} 43. Kg2 {[%emt 0:00:25]} Rh4 {[%emt 0:00:23]} 44. Kg1 {[%emt 0:00:29]} Rf4 {[%emt 0:01:22]} 45. Rc1 {[%emt 0:00:43]} Bc6 {[%emt 0:00:56]} 46. Rdc2 {[%emt 0:00:27]} Bd5 {[%emt 0:00:54]} 47. Rd2 {[%emt 0:00:20]} Bc6 {[%emt 0:01:58]} 48. Rf1 {[%emt 0:00:03]} Rc4 {[%emt 0:00:13]} 49. Rfd1 {[%emt 0:00:14]} a5 {[%emt 0:00:46]} 50. Rb2 {[%emt 0:01:28]} Ng4 {[%emt 0:01:16]} 51. Re1 {[%emt 0:00:31]} Rd4 {[%emt 0:03:27]} 52. h3 {[%emt 0:00:36]} Nf6 {[%emt 0:00:34]} 53. Kh2 {[%emt 0:00:12]} Bf3 {[%emt 0:01:34]} 54. Re3 {[%emt 0:00:41]} Bc6 {[%emt 0:00:15]} 55. Nf1 {[%emt 0:00:38]} Rf4 {[%emt 0:00:55]} 56. Ng3 {[%emt 0:00:03]} Rh4 {[%emt 0:00:07]} 57. Ne2 {[%emt 0:00:53]} Rh5 {[%emt 0:00:26]} 58. Kg3 {[%emt 0:00:34]} Rxf5 {[%emt 0:01:33]} 59. Nd4 {[%emt 0:00:01]} Rg5+ {[%emt 0:00:41]} 60. Kh2 {[%emt 0:00:36]} Bd5 {[%emt 0:00:35]} 61. Rbe2 {[%emt 0:00:31]} Rh5 {[%emt 0:01:17]} 62. Rf2 {[%emt 0:00:09]} Rh4 {[%emt 0:04:23]} 63. Nb3 {[%emt 0:00:26]} a4 {[%emt 0:01:16]} 64. Nc5 {[%emt 0:00:29]} Bc6 {[%emt 0:00:16]} 65. Nd3 {[%emt 0:00:01]} d6 {[%emt 0:00:49]} 66. Re1 {[%emt 0:00:50]} Bb5 {[%emt 0:01:30]} 67. Rd1 {[%emt 0:01:29]} Rd4 {[%emt 0:01:36]} 68. Rdf1 {[%emt 0:00:07]} Bxd3 {[%emt 0:00:31]} 69. Rxf6+ {[%emt 0:00:01]} Ke7 {[%emt 0:00:01]} 70. Rf7+ {[%emt 0:00:46]} Ke6 {[%emt 0:00:01]} 71. R1f6+ {[%emt 0:00:52]} Ke5 {[%emt 0:00:02]} 72. Rf2 {[%emt 0:00:15]} b3 {[%emt 0:01:39]} 73. axb3 {[%emt 0:00:01]} axb3 {[%emt 0:00:07]} 74. Rb7 {[%emt 0:00:14]} Bc2 {[%emt 0:00:03]} 75. Kg3 {[%emt 0:00:16]} Rd3+ {[%emt 0:00:57]} 76. Kg4 {[%emt 0:00:44]} Bd1+ {[%emt 0:00:19]} 77. Kh4 {[%emt 0:00:01]} Kd4 {[%emt 0:00:30]} 78. Rc7 {[%emt 0:01:04]} d5 {[%emt 0:00:24]} 79. Rc1 {[%emt 0:00:47]} Bf3 {[%emt 0:00:38]} 80. Kg5 {[%emt 0:00:39]} Be4 {[%emt 0:00:39]} 81. h4 {[%emt 0:00:21]} Rg3+ {[%emt 0:00:44]} 82. Kf4 {[%emt 0:00:01]} Rg2 {[%emt 0:00:51]} 83. Rd1+ {[%emt 0:01:00]} Kc4 {[%emt 0:00:48]} 84. Rc1+ {[%emt 0:00:01]} Kb4 {[%emt 0:00:34]} 85. Rxg2 {[%emt 0:00:35]} Bxg2 {[%emt 0:00:02]} 86. Ke5 {[%emt 0:00:13]} Be4 {[%emt 0:02:02]} 87. Kd4 {[%emt 0:01:11]} b2 {[%emt 0:00:47]} 88. Rf1 {[%emt 0:00:48]} Kb5 {[%emt 0:03:00]} 89. h5 {[%emt 0:00:01]} Kc6 {[%emt 0:00:11]} 90. Rf6+ {[%emt 0:00:13]} Kc7 {[%emt 0:00:22]} 91. Rf7+ {[%emt 0:01:45]} Kb6 {[%emt 0:00:01]} 92. Rf1 {[%emt 0:00:30]} Kc6 {[%emt 0:00:10]} 93. Rf6+ {[%emt 0:00:05]} Kd7 {[%emt 0:00:09]} 94. Rb6 {[%emt 0:00:04]} 1/2-1/2

[Event "Aktogay Masters 2019"]
[Site "Aktogay"]
[Date "2019.05.15"]
[Round "4.3"]
[White "Kaiyrbekov, Rustam"]
[Black "Bekturov, Tamerlan"]
[Result "1-0"]
[ECO "E03"]
[WhiteElo "2329"]
[BlackElo "2241"]
[Annotator "NA"]
[PlyCount "102"]
[EventDate "2019.05.11"]
[EventType "tourn"]
[EventCountry "KAZ"]
[SourceTitle "playchess.com"]
[Source "ChessBase"]
[SourceQuality "1"]
[TimeControl "5400+30"]

1. d4 Nf6 2. Nf3 d5 3. c4 e6 4. g3 dxc4 5. Qa4+ Nbd7 6. Qxc4 a6 7. Bg2 b5 8. Qc2 Bb7 9. O-O c5 10. Bg5 Qb6 11. dxc5 Bxc5 12. Nc3 Rc8 13. Qb3 h6 14. Bxf6 Nxf6 15. a4 b4 16. a5 Qc7 17. Nb1 O-O 18. Nbd2 Bd5 19. Qd3 Qb7 20. e3 Bc6 21. Nh4 Nd5 22. Rfc1 Be7 23. Nhf3 Nf6 24. Qf1 Bb5 25. Nd4 Bxf1 26. Bxb7 Rxc1 27. Rxc1 Rb8 28. Kxf1 Rxb7 29. Rc8+ Kh7 30. Ra8 Rc7 31. Rxa6 Rc1+ 32. Ke2 Ra1 33. Ra7 Bc5 34. N2b3 Bxd4 35. Nxd4 Ra2 36. Rxf7 Rxb2+ 37. Kd3 Ng4 38. f4 Ra2 39. Nxe6 Nf2+ 40. Kc4 Kg6 41. Ra7 Rb2 42. a6 Nd1 43. e4 b3 44. Rxg7+ Kf6 45. a7 Ra2 46. Kxb3 Ra1 47. f5 Ne3 48. Rh7 Ke5 49. Nc5 Kd4 50. Na4 Rb1+ 51. Ka2 Rb4 1-0

[Event "Aktogay Masters 2019"]
[Site "Aktogay"]
[Date "2019.05.15"]
[Round "4.4"]
[White "Kuznetsov, Andrei S."]
[Black "Kim, Kristina"]
[Result "0-1"]
[ECO "B15"]
[WhiteElo "2261"]
[BlackElo "1916"]
[Annotator "NA"]
[PlyCount "160"]
[EventDate "2019.05.11"]
[EventType "tourn"]
[EventCountry "KAZ"]
[SourceTitle "playchess.com"]
[Source "ChessBase"]
[SourceQuality "1"]
[TimeControl "5400+30"]

1. e4 {[%emt 0:00:00]} g6 {[%emt 0:00:00]} 2. d4 {[%emt 0:00:00]} Bg7 {[%emt 0:00:00]} 3. Nc3 {[%emt 0:00:00]} c6 {[%emt 0:00:00]} 4. f4 {[%emt 0:00:19]} d5 {[%emt 0:00:00]} 5. e5 {[%emt 0:00:08]} Nh6 {[%emt 0:00:00]} 6. Nf3 {[%emt 0:00:33]} Bg4 {[%emt 0:00:00]} 7. h3 {[%emt 0:01:24]} Bxf3 {[%emt 0:00:00]} 8. Qxf3 {[%emt 0:00:05]} f6 {[%emt 0:00:00]} 9. Be3 {[%emt 0:02:46]} O-O {[%emt 0:00:05]} 10. exf6 {[%emt 0:01:13]} exf6 {[%emt 0:00:06]} 11. O-O-O {[%emt 0:00:30]} Nd7 {[%emt 0:00:31]} 12. g4 {[%emt 0:00:16]} f5 {[%emt 0:00:04]} 13. Bd3 {[%emt 0:01:51]} Nb6 {[%emt 0:01:52]} 14. g5 {[%emt 0:02:40]} Nf7 {[%emt 0:01:32]} 15. h4 {[%emt 0:00:02]} Qc7 {[%emt 0:01:05]} 16. h5 {[%emt 0:00:20]} Rfe8 {[%emt 0:00:50]} 17. Rh3 {[%emt 0:03:06]} Re6 {[%emt 0:00:52]} 18. Rdh1 {[%emt 0:00:40]} Rae8 {[%emt 0:00:32]} 19. Bf2 {[%emt 0:00:28]} Nd6 {[%emt 0:02:56]} 20. hxg6 {[%emt 0:00:28]} hxg6 {[%emt 0:00:05]} 21. Rh7 {[%emt 0:01:33]} Ne4 {[%emt 0:01:29]} 22. Ne2 {[%emt 0:07:53]} Nc4 {[%emt 0:08:00]} 23. Be1 {[%emt 0:00:54]} Ned6 {[%emt 0:07:43]} 24. R1h2 {[%emt 0:01:47]} Ne3 {[%emt 0:03:01]} 25. Bb4 {[%emt 0:04:58]} Ng4 {[%emt 0:01:18]} 26. R2h4 {[%emt 0:02:23]} Ne4 {[%emt 0:02:46]} 27. Be1 {[%emt 0:02:14]} b6 {[%emt 0:03:01]} 28. Kb1 {[%emt 0:02:19]} Ngf2 {[%emt 0:03:13]} 29. Rh2 {[%emt 0:00:29]} Ng4 {[%emt 0:13:24]} 30. R2h4 {[%emt 0:01:18]} a5 {[%emt 0:05:19]} 31. a3 {[%emt 1:02:53]} Ngf2 {[%emt 0:09:59]} 32. Rh2 {[%emt 0:00:00]} Nxd3 {[%emt 0:15:44]} 33. cxd3 {[%emt 0:00:00]} Nd6 {[%emt 0:00:07]} 34. Bd2 {[%emt 0:00:00]} Qe7 {[%emt 0:04:22]} 35. Nc3 {[%emt 0:00:00]} Qf8 {[%emt 0:03:31]} 36. Qh1 {[%emt 0:00:00]} Nf7 {[%emt 0:00:03]} 37. Ka2 {[%emt 0:00:00]} b5 {[%emt 0:01:44]} 38. Nxb5 {[%emt 0:00:00]} cxb5 {[%emt 0:00:19]} 39. Bxa5 {[%emt 0:00:00]} Ra8 {[%emt 0:01:54]} 40. Qxd5 {[%emt 0:00:00]} Rea6 {[%emt 0:00:33]} 41. b4 {[%emt 0:00:00]} Qd6 {[%emt 0:00:24]} 42. Rxg7+ {[%emt 0:00:00]} Kxg7 {[%emt 0:00:07]} 43. Qc5 {[%emt 0:00:00]} Qxc5 {[%emt 0:01:52]} 44. dxc5 {[%emt 0:00:00]} Nd8 {[%emt 0:00:44]} 45. a4 {[%emt 0:00:00]} Rxa5 {[%emt 0:00:14]} 46. bxa5 {[%emt 0:00:00]} Rxa5 {[%emt 0:00:03]} 47. Kb3 {[%emt 0:00:00]} bxa4+ {[%emt 0:02:01]} 48. Kc4 {[%emt 0:00:00]} a3 {[%emt 0:00:59]} 49. Ra2 {[%emt 0:00:00]} Ne6 {[%emt 0:00:08]} 50. d4 {[%emt 0:00:00]} Ra4+ {[%emt 0:10:28]} 51. Kb5 {[%emt 0:00:00]} Rxd4 {[%emt 0:00:00]} 52. Rxa3 {[%emt 0:00:00]} Rxf4 {[%emt 0:01:00]} 53. Ra7+ {[%emt 0:00:00]} Kf8 {[%emt 0:00:30]} 54. Ra8+ {[%emt 0:00:00]} Kf7 {[%emt 0:00:00]} 55. Ra7+ {[%emt 0:00:00]} Ke8 {[%emt 0:00:00]} 56. Ra8+ {[%emt 0:00:00]} Kd7 {[%emt 0:00:00]} 57. c6+ {[%emt 0:00:00]} Kd6 {[%emt 0:00:00]} 58. Rg8 {[%emt 0:00:00]} Nc7+ {[%emt 0:02:30]} 59. Kb6 {[%emt 0:00:00]} Nd5+ {[%emt 0:00:00]} 60. Kb5 {[%emt 0:00:00]} Rb4+ {[%emt 0:00:00]} 61. Ka5 {[%emt 0:00:00]} Kxc6 {[%emt 0:00:00]} 62. Rxg6+ {[%emt 0:00:00]} Kc5 {[%emt 0:00:00]} 63. Rg7 {[%emt 0:00:00]} Rb1 {[%emt 0:00:00]} 64. Ka4 {[%emt 0:00:00]} f4 {[%emt 0:00:06]} 65. g6 {[%emt 0:00:00]} Rg1 {[%emt 0:00:05]} 66. Kb3 {[%emt 0:00:00]} Kd6 {[%emt 0:00:33]} 67. Kc4 {[%emt 0:00:00]} Ne7 {[%emt 0:00:10]} 68. Kd3 {[%emt 0:00:00]} Ke6 {[%emt 0:00:55]} 69. Ke4 {[%emt 0:00:00]} Nxg6 {[%emt 0:00:06]} 70. Rg8 {[%emt 0:00:00]} Re1+ {[%emt 0:00:15]} 71. Kf3 {[%emt 0:00:00]} Kf5 {[%emt 0:00:10]} 72. Kf2 {[%emt 0:00:00]} Ra1 {[%emt 0:00:06]} 73. Rb8 {[%emt 0:00:00]} Ra2+ {[%emt 0:00:04]} 74. Kf1 {[%emt 0:00:00]} Kg4 {[%emt 0:00:18]} 75. Rb6 {[%emt 0:00:00]} Ne5 {[%emt 0:00:49]} 76. Rb5 {[%emt 0:00:00]} Nf3 {[%emt 0:00:51]} 77. Rb8 {[%emt 0:00:00]} Nh2+ {[%emt 0:00:12]} 78. Kg1 {[%emt 0:00:00]} Kg3 {[%emt 0:00:04]} 79. Rg8+ {[%emt 0:00:00]} Ng4 {[%emt 0:00:05]} 80. Kf1 {[%emt 0:00:00]} f3 {[%emt 0:00:07]} 0-1

[Event "Aktogay Masters 2019"]
[Site "Aktogay"]
[Date "2019.05.15"]
[Round "4.5"]
[White "Igambergenov, Alibek"]
[Black "Sukhov, Artur"]
[Result "1-0"]
[ECO "D06"]
[WhiteElo "2295"]
[BlackElo "2110"]
[Annotator "NA"]
[PlyCount "109"]
[EventDate "2019.05.11"]
[EventType "tourn"]
[EventCountry "KAZ"]
[SourceTitle "playchess.com"]
[Source "ChessBase"]
[SourceQuality "1"]
[TimeControl "5400+30"]

1. Nf3 {[%emt 0:00:00]} Nf6 {[%emt 0:00:00]} 2. c4 {[%emt 0:00:00]} d5 {[%emt 0:00:00]} 3. cxd5 {[%emt 0:00:00]} Nxd5 {[%emt 0:00:00]} 4. e4 {[%emt 0:01:13]} Nf6 {[%emt 0:01:25]} 5. Nc3 {[%emt 0:00:13]} e6 {[%emt 0:07:11]} 6. d4 {[%emt 0:01:25]} a6 {[%emt 0:00:57]} 7. Bd3 {[%emt 0:03:57]} c5 {[%emt 0:01:14]} 8. d5 {[%emt 0:00:28]} exd5 {[%emt 0:16:21]} 9. exd5 {[%emt 0:00:27]} Bd6 {[%emt 0:00:07]} 10. O-O {[%emt 0:01:32]} O-O {[%emt 0:01:52]} 11. Bg5 {[%emt 0:00:12]} h6 {[%emt 0:17:24]} 12. Bh4 {[%emt 0:00:43]} Bg4 {[%emt 0:01:40]} 13. Bc2 {[%emt 0:12:05]} Nbd7 {[%emt 0:05:44]} 14. Ne4 {[%emt 0:01:51]} Bf4 {[%emt 0:01:33]} 15. Re1 {[%emt 0:23:54]} g5 {[%emt 0:06:44]} 16. Bg3 {[%emt 0:01:20]} Bxf3 {[%emt 0:03:54]} 17. Qxf3 {[%emt 0:00:57]} Ne5 {[%emt 0:01:12]} 18. Nxf6+ {[%emt 0:03:28]} Qxf6 {[%emt 0:00:08]} 19. Qe4 {[%emt 0:00:07]} Ng6 {[%emt 0:00:44]} 20. Bxf4 {[%emt 0:00:21]} Qxf4 {[%emt 0:00:51]} 21. g3 {[%emt 0:46:17]} Qf6 {[%emt 0:04:07]} 22. Rad1 {[%emt 0:00:30]} Rad8 {[%emt 0:27:52]} 23. d6 {[%emt 0:00:30]} Rxd6 {[%emt 0:00:30]} 24. Rxd6 {[%emt 0:00:00]} Qxd6 {[%emt 0:00:30]} 25. Qxb7 {[%emt 0:00:00]} Rb8 26. Qf3 {[%emt 0:00:00]} Kg7 27. Bb3 {[%emt 0:00:00]} Qf6 {[%emt 0:00:00]} 28. Qxf6+ {[%emt 0:00:00]} Kxf6 {[%emt 0:00:00]} 29. Rd1 {[%emt 0:03:00]} a5 {[%emt 0:02:30]} 30. Rd6+ {[%emt 0:00:30]} Kg7 {[%emt 0:00:00]} 31. Ra6 {[%emt 0:00:30]} Rb4 {[%emt 0:00:00]} 32. Rxa5 {[%emt 0:00:30]} c4 {[%emt 0:00:00]} 33. Ra4 Rxa4 {[%emt 0:00:00]} 34. Bxa4 {[%emt 0:00:00]} Ne5 35. Bb5 {[%emt 0:01:30]} Nd3 {[%emt 0:01:03]} 36. Bxc4 {[%emt 0:00:00]} Nxb2 {[%emt 0:00:03]} 37. Bb5 {[%emt 0:01:00]} Kf6 {[%emt 0:00:24]} 38. a4 {[%emt 0:00:00]} Ke5 {[%emt 0:00:01]} 39. a5 Kd6 {[%emt 0:00:52]} 40. a6 Kc7 {[%emt 0:00:30]} 41. Kg2 {[%emt 0:00:00]} Nd1 {[%emt 0:00:00]} 42. Be2 {[%emt 0:00:00]} Nc3 {[%emt 0:00:00]} 43. Bc4 {[%emt 0:00:00]} f5 {[%emt 0:00:45]} 44. Bd3 {[%emt 0:00:00]} Kb6 {[%emt 0:00:43]} 45. Kf3 {[%emt 0:00:00]} Nd5 {[%emt 0:03:39]} 46. Bxf5 {[%emt 0:00:00]} Kxa6 {[%emt 0:00:00]} 47. Ke4 {[%emt 0:00:00]} Nc3+ 48. Ke5 {[%emt 0:00:00]} Nd1 49. f3 {[%emt 0:06:00]} Ne3 {[%emt 0:00:00]} 50. Bh3 {[%emt 0:00:00]} h5 {[%emt 0:00:00]} 51. Ke4 {[%emt 0:01:00]} Nc2 {[%emt 0:00:47]} 52. Kf5 {[%emt 0:00:00]} Nd4+ {[%emt 0:00:11]} 53. Kxg5 {[%emt 0:00:00]} Nxf3+ {[%emt 0:00:09]} 54. Kxh5 {[%emt 0:00:00]} Nxh2 {[%emt 0:03:23]} 55. Bg2 {[%emt 0:00:00]} 1-0

[Event "Aktogay Masters 2019"]
[Site "Aktogay"]
[Date "2019.05.15"]
[Round "5.4"]
[White "Sukhov, Artur"]
[Black "Kuznetsov, Andrei S."]
[Result "0-1"]
[ECO "D94"]
[WhiteElo "2110"]
[BlackElo "2261"]
[Annotator "NA"]
[PlyCount "128"]
[EventDate "2019.05.11"]
[EventType "tourn"]
[EventCountry "KAZ"]
[SourceTitle "playchess.com"]
[Source "ChessBase"]
[SourceQuality "1"]
[TimeControl "5400+30"]

1. d4 {[%emt 0:00:00]} Nf6 {[%emt 0:00:00]} 2. c4 {[%emt 0:00:11]} c6 {[%emt 0:00:00]} 3. Nf3 {[%emt 0:00:07]} d5 {[%emt 0:00:00]} 4. e3 {[%emt 0:00:15]} g6 {[%emt 0:00:06]} 5. Nc3 {[%emt 0:00:07]} Bg7 {[%emt 0:00:04]} 6. Bd3 {[%emt 0:00:16]} O-O {[%emt 0:00:48]} 7. O-O {[%emt 0:00:06]} b6 {[%emt 0:04:51]} 8. Ne5 {[%emt 0:02:56]} Bb7 {[%emt 0:00:14]} 9. cxd5 {[%emt 0:00:44]} cxd5 {[%emt 0:01:46]} 10. Bd2 {[%emt 0:00:24]} Ne4 {[%emt 0:00:22]} 11. f4 {[%emt 0:05:29]} f6 {[%emt 0:04:09]} 12. Nxe4 {[%emt 0:02:13]} dxe4 {[%emt 0:02:42]} 13. Bc4+ {[%emt 0:00:03]} Bd5 {[%emt 0:00:01]} 14. Qb3 {[%emt 0:00:11]} e6 {[%emt 0:00:12]} 15. Ng4 {[%emt 0:01:37]} Nc6 {[%emt 0:00:42]} 16. Rac1 {[%emt 0:01:09]} Rc8 {[%emt 0:01:20]} 17. Rc2 {[%emt 0:03:43]} f5 {[%emt 0:05:54]} 18. Nf2 {[%emt 0:05:07]} Qd7 {[%emt 0:18:08]} 19. Rfc1 {[%emt 0:01:12]} Bxc4 {[%emt 0:01:16]} 20. Rxc4 {[%emt 0:04:48]} Ne7 {[%emt 0:00:41]} 21. Bb4 {[%emt 0:01:16]} Rxc4 {[%emt 0:00:14]} 22. Rxc4 {[%emt 0:00:07]} Rc8 {[%emt 0:00:08]} 23. Bxe7 {[%emt 0:01:16]} Rxc4 {[%emt 0:00:02]} 24. Qxc4 {[%emt 0:00:16]} Qxe7 {[%emt 0:00:04]} 25. Nd1 {[%emt 0:00:37]} Qd7 {[%emt 0:01:04]} 26. Nc3 {[%emt 0:00:32]} Kf8 {[%emt 0:07:11]} 27. Kf2 {[%emt 0:01:04]} Bf6 {[%emt 0:05:41]} 28. g3 {[%emt 0:03:38]} a5 {[%emt 0:01:59]} 29. Ke2 {[%emt 0:01:56]} Bd8 {[%emt 0:00:44]} 30. Kd2 {[%emt 0:04:57]} g5 {[%emt 0:01:14]} 31. Qb5 {[%emt 0:01:45]} Qxb5 {[%emt 0:03:39]} 32. Nxb5 {[%emt 0:00:06]} g4 {[%emt 0:01:03]} 33. Kc3 {[%emt 0:01:06]} Ke7 {[%emt 0:02:00]} 34. Kc4 {[%emt 0:01:11]} Kd7 {[%emt 0:00:11]} 35. d5 {[%emt 0:00:35]} Bf6 {[%emt 0:04:45]} 36. dxe6+ {[%emt 0:08:31]} Kxe6 {[%emt 0:00:23]} 37. Nc3 {[%emt 0:00:06]} h5 {[%emt 0:05:46]} 38. Kb5 {[%emt 0:01:15]} Bd8 {[%emt 0:02:05]} 39. Kc6 {[%emt 0:00:18]} h4 {[%emt 0:00:45]} 40. Ne2 {[%emt 0:00:10]} h3 {[%emt 0:00:31]} 41. Nd4+ {[%emt 0:02:03]} Kf6 {[%emt 0:00:24]} 42. Kd7 {[%emt 0:01:43]} Be7 {[%emt 0:00:22]} 43. Nxf5 {[%emt 0:00:29]} Bc5 {[%emt 0:00:09]} 44. Nh6 {[%emt 0:00:06]} Kg6 {[%emt 0:00:16]} 45. Nxg4 {[%emt 0:00:33]} Kf5 {[%emt 0:00:10]} 46. Nf2 {[%emt 0:11:23]} Bxe3 {[%emt 0:00:15]} 47. Nxh3 {[%emt 0:00:04]} Bd4 {[%emt 0:00:41]} 48. Kd6 {[%emt 0:03:10]} Bxb2 {[%emt 0:03:26]} 49. Kd5 {[%emt 0:00:11]} e3 {[%emt 0:01:30]} 50. Ng1 {[%emt 0:00:25]} a4 {[%emt 0:01:31]} 51. Kc4 {[%emt 0:05:58]} a3 {[%emt 0:02:14]} 52. Kd3 {[%emt 0:02:14]} b5 {[%emt 0:00:29]} 53. Nf3 {[%emt 0:00:10]} b4 {[%emt 0:01:14]} 54. Ne1 {[%emt 0:00:12]} Bc3 {[%emt 0:08:00]} 55. Nc2 {[%emt 0:00:34]} Bd2 {[%emt 0:00:23]} 56. Nd4+ {[%emt 0:01:16]} Kg4 {[%emt 0:00:23]} 57. Nb3 {[%emt 0:00:15]} Kf3 {[%emt 0:02:45]} 58. f5 {[%emt 0:09:30]} Bc3 {[%emt 0:01:24]} 59. Nc1 {[%emt 0:02:22]} Bb2 {[%emt 0:00:32]} 60. f6 {[%emt 0:01:00]} Bxf6 {[%emt 0:00:21]} 61. Kc2 {[%emt 0:00:44]} Bb2 {[%emt 0:02:15]} 62. Nd3 {[%emt 0:00:22]} e2 {[%emt 0:01:45]} 63. h4 {[%emt 0:15:26]} Ke3 {[%emt 0:08:16]} 64. h5 {[%emt 0:00:00]} b3+ {[%emt 0:00:00]} 0-1

[Event "Aktogay Masters 2019"]
[Site "Aktogay"]
[Date "2019.05.15"]
[Round "6.3"]
[White "Igambergenov, Alibek"]
[Black "Bekturov, Tamerlan"]
[Result "1/2-1/2"]
[ECO "A35"]
[WhiteElo "2295"]
[BlackElo "2241"]
[Annotator "NA"]
[PlyCount "52"]
[EventDate "2019.05.11"]
[EventType "tourn"]
[EventCountry "KAZ"]
[SourceTitle "playchess.com"]
[Source "ChessBase"]
[SourceQuality "1"]
[TimeControl "5400+30"]

1. Nf3 {[%emt 0:01:03]} c5 {[%emt 0:00:17]} 2. c4 {[%emt 0:00:07]} Nc6 {[%emt 0:00:06]} 3. Nc3 {[%emt 0:00:09]} g6 {[%emt 0:00:08]} 4. e3 {[%emt 0:00:08]} Nf6 {[%emt 0:04:11]} 5. d4 {[%emt 0:00:15]} cxd4 {[%emt 0:00:41]} 6. exd4 {[%emt 0:00:03]} d5 {[%emt 0:00:51]} 7. cxd5 {[%emt 0:00:13]} Nxd5 {[%emt 0:00:27]} 8. Qb3 {[%emt 0:00:08]} Nb6 {[%emt 0:04:46]} 9. d5 {[%emt 0:01:16]} Nb8 {[%emt 0:02:55]} 10. a4 {[%emt 0:09:54]} Bg7 {[%emt 0:01:57]} 11. a5 {[%emt 0:00:06]} N6d7 {[%emt 0:00:05]} 12. Bf4 {[%emt 0:00:16]} O-O {[%emt 0:02:24]} 13. Bc4 {[%emt 0:00:19]} b6 {[%emt 0:02:54]} 14. O-O {[%emt 0:03:47]} Ba6 {[%emt 0:08:46]} 15. Nb5 {[%emt 0:23:38]} Nc5 {[%emt 0:12:27]} 16. Qb4 {[%emt 0:02:58]} Bb7 {[%emt 0:05:07]} 17. Bc7 {[%emt 0:17:09]} Qc8 {[%emt 0:06:04]} 18. axb6 {[%emt 0:00:35]} Nba6 {[%emt 0:00:51]} 19. Qd2 {[%emt 0:01:40]} axb6 {[%emt 0:00:17]} 20. Be5 {[%emt 0:01:37]} Bxe5 {[%emt 0:08:41]} 21. Nxe5 {[%emt 0:00:08]} Nd7 {[%emt 0:00:51]} 22. Nxd7 {[%emt 0:07:15]} Qxd7 {[%emt 0:00:11]} 23. Rfe1 {[%emt 0:00:14]} Nc7 {[%emt 0:03:53]} 24. Nc3 {[%emt 0:01:43]} b5 {[%emt 0:01:56]} 25. Rxa8 {[%emt 0:01:35]} Rxa8 {[%emt 0:01:53]} 26. Bb3 {[%emt 0:00:06]} Rd8 {[%emt 0:08:09]} 1/2-1/2